Cogmind - Beta 10.1 @@@ ROGUE MODE // 2020.10.14 @ 14:24:30 Player: Shamgod Result: Self-destructed Performance ------------- Evolutions (1) 500 Regions Visited (2) 400 Robots Destroyed (5) 25 Value Destroyed (130) 130 Prototype IDs (2) 40 Alien Tech Used (0) 0 Bonus (0) 0 TOTAL SCORE: 1095 Bonus ------- None Cogmind --------- Core Integrity 286/400 Matter 205/300 Energy 250/250 System Corruption 0% Temperature Cool (0) Movement Core (300) Ox5 Location -9/Materials Parts ------- > --- POWER (2) -------- Ion Engine > --- PROPULSION (2) --- (None) > --- UTILITY (2) ------ Small Storage Unit Terrain Scan Processor > --- WEAPON (3) ------- EM Shotgun Mining Laser Heavy Hammer > --- INVENTORY (6) ---- Improved Aluminum Leg Heat Sink Light Armor Plating Datajack Peak State ------------ > --- POWER ------------ Ion Engine Light Ion Engine > --- PROPULSION ------- Light Treads Light Treads > --- UTILITY ---------- Small Storage Unit Terrain Scan Processor > --- WEAPON ----------- Medium Laser Medium Laser Heavy Hammer > --- INVENTORY -------- Improved Aluminum Leg Heat Sink Light Armor Plating Datajack Mining Laser [Rating: 11] Favorites ----------- Power Ion Engine Engine Ion Engine Propulsion Light Treads Treads Light Treads Utility Small Storage Unit Device Shield Generator Storage Small Storage Unit Processor Terrain Scan Processor Weapon Medium Laser Energy Gun Medium Laser Ballistic Gun Light Assault Rifle Launcher Grenade Launcher Special Weapon Mining Laser Impact Weapon Heavy Hammer Build | -11 -10 -9 ------- Run | Scr Mat Mat Slots Evolved 2 | . . 2 Power 1 | . . 1 Propulsion . | . . . Utility . | . . . Weapon 1 | . . 1 Parts Attached 17 | 7 3 7 Power 3 | 1 1 1 Engine 3 | 1 1 1 Core . | . . . Reactor . | . . . Propulsion 2 | 2 . . Treads 2 | 2 . . Leg . | . . . Wheel . | . . . Hover . | . . . Flight . | . . . Utility 4 | 2 1 1 Device 1 | . 1 . Storage 1 | 1 . . Processor 2 | 1 . 1 Hackware . | . . . Protection . | . . . Artifact . | . . . Weapon 8 | 2 1 5 Energy Gun 3 | 1 1 1 Energy Cannon . | . . . Ballistic Gun 1 | 1 . . Ballistic Cannon . | . . . Launcher 1 | . . 1 Special Weapon 2 | . . 2 Impact Weapon 1 | . . 1 Slashing Weapon . | . . . Piercing Weapon . | . . . Special Melee Weapon . | . . . Unidentified Prototypes . | . . . Parts Lost 6 | . 1 5 Power 1 | . . 1 Propulsion 2 | . . 2 Utility . | . . . Weapon 3 | . 1 2 Highest Loss Streak 5 | . 1 5 Average Slot Usage (%) 98 | . 99 97 Engine 16 | . 14 22 Treads 25 | . 28 21 Device 9 | . 12 . Storage 13 | . 14 11 Processor 3 | . 1 10 Energy Gun 19 | . 21 16 Ballistic Gun 4 | . 6 . Launcher 1 | . . 5 Special Weapon 1 | . . 3 Impact Weapon 2 | . . 6 Naked Turns . | . . . Heaviest Build 20 | 12 15 20 Greatest Support 40 | 40 40 40 Greatest Overweight (x) 6 | . . 6 Average Overweight (x) . | . . . Largest Inventory Capacity 6 | 6 6 6 Average Capacity 5 | 5 6 6 Most Carried 6 | 6 6 6 Average Carried 4 | 3 5 4 Final Capacity 6 | 6 6 6 Final Carried 6 | 5 6 4 Class Distribution -------------------- 90% | Mutant 9% | Gunner Dominant Class ---------------- Mutant | -10/Materials Mutant | -9/Materials Resources | -11 -10 -9 ----------- Run | Scr Mat Mat Matter Collected 314 | 227 87 . Remotely . | . . . Salvage Created 158 | 25 133 . Parts 11 | 3 8 . Haulers Intercepted . | . . . Recyclers Shooed . | . . . Parts Field Recycled . | . . . Retrieved Matter . | . . . Parts Self-Destructed . | . . . Prevented . | . . . Kills | -11 -10 -9 ------- Run | Scr Mat Mat Combat Hostiles Destroyed 2 | . 2 . Guns 2 | . 2 . Classes Destroyed 3 | 1 2 . Tunneler 1 | 1 . . Watcher 2 | . 2 . Grunt 2 | . 2 . Best Kill Streak 2 | 1 2 . Combat Bots Only 2 | . 2 . Max Kills in Single Turn 1 | 1 1 . Gunslinging . | . . . Exploded . | . . . Melee . | . . . Uniques/NPCs Destroyed . | . . . Combat | -11 -10 -9 -------- Run | Scr Mat Mat Damage Taken 809 | . 344 465 Core 141 | . 27 114 Absorbed by Shields 129 | . 129 . Core Remaining (%) 94 | 100 89 . Volleys Fired 31 | 3 23 5 Largest 2 | 2 2 2 Hottest 100 | 70 100 80 Shots Fired 53 | 6 40 7 Gun 48 | 6 40 2 Cannon . | . . . Launcher 5 | . . 5 Special . | . . . Kinetic 23 | 3 20 . Thermal 25 | 3 20 2 Explosive 5 | . . 5 Electromagnetic . | . . . Robot Hit Streak 15 | 4 15 2 Robot Miss Streak 3 | 1 3 1 Penetration Max . | . . . Secondary Targets . | . . . Shots Hit Robots 31 | 4 25 2 Core Hits 9 | 1 8 . Critical Hits . | . . . Critical Kills . | . . . Critical Parts Destroyed . | . . . Melee Attacks . | . . . Impact . | . . . Slashing . | . . . Piercing . | . . . Sneak Attacks . | . . . Combat Hostiles . | . . . Follow-up Attacks . | . . . Damage Inflicted 365 | 56 211 98 Guns 273 | 50 211 12 Cannons . | . . . Explosions 86 | . . 86 Melee . | . . . Ramming 6 | 6 . . Kinetic 73 | 12 61 . Thermal 200 | 38 150 12 Explosive 86 | . . 86 Electromagnetic . | . . . Impact . | . . . Slashing . | . . . Piercing . | . . . Highest Corruption . | . . . Average Corruption . | . . . Corruption Purged . | . . . Overload Shots . | . . . Overflow Damage 16 | . . 16 Projectiles . | . . . Explosions 16 | . . 16 Melee . | . . . Knockbacks . | . . . Impact . | . . . Kinetic . | . . . Secondary . | . . . Self-Inflicted Damage 107 | . . 107 Shots 3 | . . 3 Rammed 1 | 1 . . Targets Rammed 1 | 1 . . Kicked . | . . . Crushed . | . . . Highest Temperature 249 | 60 249 57 Average Temperature 86 | 26 106 30 Received Heat Transfer 226 | . 178 48 Siege Activations . | . . . Robots Corrupted . | . . . Combat Hostiles . | . . . Parts Fried . | . . . Impact Corruptions . | . . . Robots Melted . | . . . Combat Hostiles . | . . . Parts Melted 1 | . 1 . Heat Transferred 592 | 111 444 37 Parts Sabotaged . | . . . Parts Stolen . | . . . Parts Stripped . | . . . Power Chain Reactions . | . . . Missiles Intercepted . | . . . Alert | -11 -10 -9 ------- Run | Scr Mat Mat Peak Influence 74 | 5 74 16 Initial 3 | . 3 1 Average 15 | 1 25 1 Maximum Alert Level . | . . . Low Security (%) 100 | 100 100 100 Level 1 . | . . . Level 2 . | . . . Level 3 . | . . . Level 4 . | . . . Level 5 . | . . . High Security . | . . . Max Security . | . . . Squads Dispatched . | . . . Investigation . | . . . Extermination . | . . . Reinforcement . | . . . Assault . | . . . Garrison . | . . . Intercept . | . . . Construction Impeded . | . . . Haulers Reinforced . | . . . Stealth | -11 -10 -9 --------- Run | Scr Mat Mat Distress Signals 2 | . 2 . Communications Jammed . | . . . Distress Signals . | . . . Times Spotted 14 | . 9 5 Peak Tracking Total 5 | . 4 5 Tactical Retreats 1 | . 1 . Traps | -11 -10 -9 ------- Run | Scr Mat Mat Traps Triggered . | . . . Indirectly . | . . . Trap Hack Attempts . | . . . Triggered . | . . . Disarmed . | . . . Reprogrammed . | . . . Reused . | . . . Traps Extracted . | . . . Installed . | . . . Triggered . | . . . Machines | -11 -10 -9 ---------- Run | Scr Mat Mat Machines Disabled 1 | . . 1 Max in Single Turn 1 | . . 1 Machines Sabotaged . | . . . Garrisons Compromised . | . . . Overloaded Fab Kills . | . . . Fab Network Shutdowns . | . . . Hacking | -11 -10 -9 --------- Run | Scr Mat Mat Machines Accessed 3 | . 2 1 Terminals 3 | . 2 1 Fabricators . | . . . Repair Stations . | . . . Recycling Units . | . . . Scanalyzers . | . . . Garrison Access . | . . . Total Hacks 5 | . 4 1 Successful 4 | . 3 1 Failed 1 | . 1 . Catastrophic . | . . . Database Lockouts . | . . . Manual . | . . . Terminals 5 | . 4 1 Fabricators . | . . . Repair Stations . | . . . Recycling Units . | . . . Scanalyzers . | . . . Garrison Access . | . . . Terminal Hacks 4 | . 3 1 Record 2 | . 1 1 Prototype ID Bank 1 | . 1 . Zone Layout 1 | . 1 . Fabricator Hacks . | . . . Repair Station Hacks . | . . . Recycling Unit Hacks . | . . . Scanalyzer . | . . . Garrison Access Hacks . | . . . Unauthorized Hacks . | . . . Terminals . | . . . Fabricators . | . . . Repair Stations . | . . . Recycling Units . | . . . Scanalyzers . | . . . Garrison Access . | . . . Data Cores Recovered . | . . . Used . | . . . Hacking Detections 2 | . 1 1 Full Trace Events 1 | . 1 . Feedback Events . | . . . Feedback Blocked . | . . . Robot Schematics Acquired . | . . . Robots Built . | . . . Matter . | . . . Time . | . . . Total Robot Build Rating . | . . . Part Schematics Acquired . | . . . Parts Built . | . . . Matter . | . . . Time . | . . . Total Part Build Rating . | . . . Parts Repaired . | . . . Time . | . . . Parts Recycled . | . . . Recycled Matter . | . . . Retrieved Matter . | . . . Retrieved Components . | . . . Parts Scanalyzed . | . . . Part Schematics Acquired . | . . . Parts Damaged . | . . . Bothacking | -11 -10 -9 ------------ Run | Scr Mat Mat Used RIF Installer . | . . . Robots Hacked . | . . . Non-combat . | . . . Combat . | . . . Robot Hacks Applied . | . . . Relay Couplers Released . | . . . Robots Rewired . | . . . Allies Hacked . | . . . Hacks Repelled . | . . . Allies | -11 -10 -9 -------- Run | Scr Mat Mat Total Allies . | . . . Largest Group . | . . . Highest-Rated Group . | . . . Highest-Rated Ally . | . . . Total Orders . | . . . Ally Attacks . | . . . Total Damage . | . . . Kills . | . . . Allies Corrupted . | . . . Allies Melted . | . . . Intel | -11 -10 -9 ------- Run | Scr Mat Mat Robot Analysis Total . | . . . Derelict Logs Recovered . | . . . Drone Launches . | . . . Drone Recoveries . | . . . Exploration | -11 -10 -9 ------------- Run | Scr Mat Mat Turns Passed 916 | 135 534 247 Spaces Moved 494 | 79 287 128 Core 20 | 18 . 2 Treads 474 | 61 287 126 Legs . | . . . Wheels . | . . . Hover . | . . . Flight . | . . . Fastest Speed 50 | 50 160 160 Average Speed 156 | 134 160 162 Slowest Speed 350 | 160 160 350 Overloaded Moves . | . . . Propulsion Burnouts . | . . . Robots Hopped . | . . . Cave-ins Triggered . | . . . Exploration Rate (%) 15 | 6 29 10 Regions Visited 2 Branch Regions . Pre-discovered Areas . | . . . Known Exits Taken . | . . . Unknown Exits Taken 2 | 1 1 . Scrap Searched . | . . . Spaces Dug . | . . . Terrain Destroyed 25 | . . 25 Melee . | . . . Projectile . | . . . AOE 25 | . . 25 Terrain Rammed . | . . . Walls Destroyed . | . . . Machines Disabled . | . . . Actions | -11 -10 -9 --------- Run | Scr Mat Mat Total 589 | 100 328 161 Wait 19 | . 6 13 Move 492 | 78 286 128 Hop . | . . . Pick Up 18 | 9 5 4 Fast Attach 6 | 5 1 . Attach 11 | 2 2 7 Detach 4 | . 2 2 Swap . | . . . Drop 7 | 2 3 2 Fire 31 | 3 23 5 Melee . | . . . Ram . | . . . Kick . | . . . Crush 1 | 1 . . Escape Stasis . | . . . Rewire . | . . . Trap . | . . . Miscellaneous . | . . . Route ------- -11/Scrapyard -10/Materials -9/Materials History --------- Turn | Location | Event 14 | -11/Scrapyard | Discovered new exit (range 15) 136 | -11/Scrapyard | Entered Materials 313 | -10/Materials | Build established: Mutant 545 | -10/Materials | Discovered new exit (range 10) 670 | -10/Materials | Entered another Materials area 670 | -9/Materials | Evolved 2 slots: Power x1, Weapon x1 917 | -9/Materials | Self-destructed Last Messages --------------- 00809_ Acquired EM Shotgun. 00858_ K-01 Serf cleans the Material Compactor. [Achievement: Let's See Who's Tougher] 00896_ Material Compactor disabled. 00896_ C-30 ARC bursts open, deploying its payload. 00896_ S-10 Pest unfolds itself. 00899_ K-01 Serf collects debris. 00901_ The unstable cave ceiling collapses. 00902_ Med. Laser destroyed. 00903_ K-01 Serf collects debris. 00904_ Lgt. Treads destroyed. 00904_ Destroyed Lgt. Treads. 00906_ Lgt. Treads destroyed. Overweight warning: You are carrying more than your current propulsion can efficiently support, which slows movement; see status page ('s') or the top of the parts list for the specific mass vs. support values. 00909_ Grenade Launcher destroyed. 00909_ Destroyed Grenade Launcher. 00910_ K-01 Serf collects debris. 00915_ Lgt. Ion Engine destroyed. Map ----- +----------------------------------------------------+ | ?????????????????????????????????????????????????? | | ?????????????????????????????????????????????????? | | ?????????????????????????????????????????????????? | | ?????????????????????????????????????????????????? | | ?????????????????????????????????????????????????? | | ?????????????????????????????????????????????????? | | ?????????????????????????????????????????????????? | | ?????????????????????????????????????????????????? | | ?????????????????????????????????????????????????? | | ?????????????????????????????????????????????????? | | ?????????????????????????????????????????????????? | | ?????????????????????????????????????????????????? | | ?????????????????????????????????????????????????? | | ?????????????????????????????????????????????????? | | ???????????????????#####?????????????????????????? | | ?????????????????### ?????????????????????????? | | ?????????????????# #####????????????????????? | | ??????????????????# #????????????????????? | | ??????????????????# #?##?????????????????? | | ??????????????????? ## ##????????????????? | | ???????????????????# "" #????????????????? | | ???????????????????# """ #????????????????? | | ???#######?????????# """" g #????????????????? | | ???# #?????????# """" #????????????????? | | ???# ########### """ s # "????????? | | ???# + @ s "????????? | | ???# ################## s k ! ??????? | | ???# #?????????????????## s% ?????? | | ???## ##############??????## ####### ?????? | | ????# # [ """ """ #????????T ???????+#??????? | | ????# # """ """ #????????? ??????????????? | | ????# + """ """ #??????????" #?????????????? | | ????# # #??????????? #?????????????? | | ????# # #???????????? #?????????????? | | ????# ##############?????????????#?????????????? | | ????# ########?????????????????????????????????? | | ????# # #?????????????????????????????????? | | ????# # / #?????????????????????????????????? | | ????# + #?????????????????????????????????? | | ????# # #?????????????????????????????????? | | ????# # #?????????????????????????????????? | | ????# # #?????????????????????????????????? | | ????# #########????????????????????????????????? | | ????# #????????????????????????????????? | | ????# ####### #????????????????????????????????? | | ????# #######+##???????????????????????????????? | | ????# # #???????????????????????????????? | | ????# # """ #???????????????????????????????? | | ????# # "T" #???????????????????????????????? | | ????# # " " #???????????????????????????????? | +----------------------------------------------------+ Best States ------------- Heat Dissipation 28 Energy Generation 15 Energy Capacity 275 Matter Stores 300 Matter Capacity 300 Sight Range 16 Terrain Scan Density 85 Evasion (%) 50 Recoil Reduction 2 Item Schematics ----------------- None Robot Schematics ------------------ None Fabricated ------------ Nothing Alien Tech Used ----------------- None Achievements -------------- Let's See Who's Tougher Challenges ------------ None Game ------ Seed BehemothShockSegregator Manual? 0 Play Time 00:27:10 Cumulative 3.4 hours Start 2020.10.14 @ 13:51:25 End 2020.10.14 @ 14:24:30 Sessions 1 Manual Loads 0 Difficulty Rogue Special Mode None Game No. 7 Rogue 7 Adventurer 0 Explorer 0 Win Type - Total 0 Types 0/0/0/0/0/0/0/0/0 Lore% 1 Gallery% 6 Achievement% 3 Wizard Run 0 Options --------- ASCII 0 Keyboard 1 Movement Numpad Keybinds 0 Fullscreen 2 Font 16/CogWide Map View 76x50 Tactical HUD 1 Map Filters NONE Filters NONE Steam 1 RUN: 5f45fd2c-fb7b-4a05-af56-49fe3f0e5519